[Event "2nd Serbian League-Vojvodina 2023"]
[Site "Novi Sad"]
[Date "2023.11.05"]
[Round "5.3"]
[White "Stankovic, Milos M"]
[Black "Pajcin, Lav"]
[Result "1-0"]
[ECO "D11"]
[WhiteElo "2249"]
[BlackElo "2109"]
[Annotator "RC"]
[PlyCount "93"]
[EventDate "2023.10.22"]
[EventType "team-tourn"]
[EventCountry "SRB"]
[SourceTitle "playchess.com"]
[Source "ChessBase"]
[SourceQuality "1"]
[TimeControl "40/5400+30:1800+30"]

1. d4 {[%emt 0:00:06]} d5 {[%emt 0:00:11]} 2. Nf3 {[%emt 0:00:09]} Nf6 {[%emt 0:00:12]} 3. c4 {[%emt 0:00:08]} c6 {[%emt 0:00:11]} 4. g3 {[%emt 0:00:05]} Bf5 {[%emt 0:01:35]} 5. Bg2 {[%emt 0:00:09]} e6 {[%emt 0:00:14]} 6. O-O {[%emt 0:00:10]} Nbd7 {[%emt 0:02:14]} 7. Nc3 {[%emt 0:00:07]} h6 {[%emt 0:00:33]} 8. Nd2 {[%emt 0:01:24]} Be7 {[%emt 0:01:10]} 9. e4 {[%emt 0:00:48]} dxe4 {[%emt 0:00:13]} 10. Ndxe4 {[%emt 0:00:11]} O-O {[%emt 0:00:35]} 11. Be3 {[%emt 0:03:21]} Nxe4 {[%emt 0:04:21]} 12. Nxe4 {[%emt 0:00:06]} Nf6 {[%emt 0:00:07]} 13. Nc3 {[%emt 0:02:36]} Qa5 {[%emt 0:09:07]} 14. a3 {[%emt 0:02:02]} Rad8 {[%emt 1:16:47]} 15. b4 {[%emt 0:02:05]} Qa6 {[%emt 0:00:00]} 16. Qe2 {[%emt 0:04:55]} Ng4 {[%emt 0:00:00]} 17. Rfd1 {[%emt 0:09:25]} Nxe3 {[%emt 0:00:00]} 18. fxe3 {[%emt 0:01:08]} Qb6 {[%emt 0:00:00]} 19. c5 {[%emt 0:01:31]} Qc7 {[%emt 0:00:00]} 20. e4 {[%emt 0:01:15]} Bg6 {[%emt 0:00:00]} 21. Bf3 {[%emt 0:06:00]} Rd7 {[%emt 0:00:00]} 22. Qc4 {[%emt 0:03:26]} Rfd8 {[%emt 0:00:00]} 23. d5 {[%emt 0:12:16]} Qe5 {[%emt 0:00:00]} 24. d6 {[%emt 0:01:08]} Bg5 {[%emt 0:00:00]} 25. Ne2 {[%emt 0:00:59]} h5 {[%emt 0:00:00]} 26. h4 {[%emt 0:00:30]} Be3+ {[%emt 0:00:00]} 27. Kg2 {[%emt 0:00:13]} b6 {[%emt 0:00:00]} 28. Qd3 {[%emt 0:03:37]} Bh6 {[%emt 0:00:00]} 29. Qd4 {[%emt 0:00:04]} f6 {[%emt 0:00:00]} 30. Kf2 {[%emt 0:02:04]} Be8 {[%emt 0:00:00]} 31. Rab1 {[%emt 0:02:04]} Rb7 {[%emt 0:00:00]} 32. Qxe5 {[%emt 0:03:35]} fxe5 {[%emt 0:00:00]} 33. Nc3 {[%emt 0:00:40]} Rdb8 {[%emt 0:00:00]} 34. Na4 {[%emt 0:04:16]} b5 {[%emt 0:00:00]} 35. Nb2 {[%emt 0:00:40]} g6 {[%emt 0:00:00]} 36. Nd3 {[%emt 0:00:03]} Bg7 {[%emt 0:00:00]} 37. a4 {[%emt 0:03:26]} Ra8 {[%emt 0:00:00]} 38. Ra1 {[%emt 0:00:24]} a5 {[%emt 0:00:00]} 39. axb5 {[%emt 0:00:13]} Rxb5 {[%emt 0:00:00]} 40. bxa5 {[%emt 0:00:06]} Bf6 {[%emt 0:07:16]} 41. a6 {[%emt 0:30:17]} Kf8 {[%emt 0:32:10]} 42. Be2 {[%emt 0:00:45]} Rb3 {[%emt 0:00:20]} 43. Rd2 {[%emt 0:00:39]} Rbb8 {[%emt 0:00:42]} 44. Rb2 {[%emt 0:00:08]} Rd8 {[%emt 0:00:06]} 45. Rb7 {[%emt 0:00:10]} Rd7 {[%emt 0:00:41]} 46. Rxd7 {[%emt 0:00:11]} Bxd7 {[%emt 0:00:04]} 47. a7 {[%emt 0:34:25]} 1-0

[Event "2nd Serbian League-Vojvodina 2023"]
[Site "Novi Sad"]
[Date "2023.11.05"]
[Round "5.4"]
[White "Gagic, Milan A"]
[Black "Milekic, Daniel"]
[Result "1/2-1/2"]
[ECO "B22"]
[WhiteElo "2164"]
[BlackElo "2236"]
[Annotator "RC"]
[PlyCount "38"]
[EventDate "2023.10.22"]
[EventType "team-tourn"]
[EventCountry "SRB"]
[SourceTitle "playchess.com"]
[Source "ChessBase"]
[SourceQuality "1"]
[TimeControl "40/5400+30:1800+30"]

1. e4 {[%emt 0:00:03]} c5 {[%emt 0:00:32]} 2. c3 {[%emt 0:00:04]} Nf6 {[%emt 0:00:51]} 3. e5 {[%emt 0:00:12]} Nd5 {[%emt 0:00:10]} 4. Nf3 {[%emt 0:01:36]} d6 {[%emt 0:00:26]} 5. d4 {[%emt 0:00:30]} cxd4 {[%emt 0:01:18]} 6. cxd4 {[%emt 0:00:14]} Nc6 {[%emt 0:00:41]} 7. Bc4 {[%emt 0:00:21]} Nb6 {[%emt 0:00:47]} 8. Bb5 {[%emt 0:00:57]} dxe5 {[%emt 0:00:54]} 9. Nxe5 {[%emt 0:01:44]} Bd7 {[%emt 0:00:17]} 10. Nxd7 {[%emt 0:00:04]} Qxd7 {[%emt 0:00:07]} 11. Nc3 {[%emt 0:01:04]} e6 {[%emt 0:00:10]} 12. O-O {[%emt 0:03:36]} Rd8 {[%emt 0:00:10]} 13. Be3 {[%emt 0:06:34]} Be7 {[%emt 0:00:18]} 14. Rc1 {[%emt 0:05:32]} O-O {[%emt 0:00:49]} 15. Ne4 {[%emt 0:14:48]} Qd5 {[%emt 0:06:16]} 16. Nc3 {[%emt 0:06:47]} Qd6 {[%emt 0:09:30]} 17. Ne4 {[%emt 0:06:00]} Qd5 {[%emt 0:05:40]} 18. Nc3 {[%emt 0:00:07]} Qd6 {[%emt 0:00:54]} 19. Ne4 {[%emt 0:01:01]} Qd5 {[%emt 0:00:58]} 1/2-1/2

[Event "2nd Serbian League-Vojvodina 2023"]
[Site "Novi Sad"]
[Date "2023.11.05"]
[Round "5.5"]
[White "Radlovacki, Jovan"]
[Black "Pavkov, Nebojsa"]
[Result "1/2-1/2"]
[ECO "C02"]
[WhiteElo "2268"]
[BlackElo "2199"]
[Annotator "RC"]
[PlyCount "36"]
[EventDate "2023.10.22"]
[EventType "team-tourn"]
[EventCountry "SRB"]
[SourceTitle "playchess.com"]
[Source "ChessBase"]
[SourceQuality "1"]
[TimeControl "40/5400+30:1800+30"]

1. e4 {[%emt 0:00:49]} e6 {[%emt 0:00:07]} 2. d4 {[%emt 0:00:27]} d5 {[%emt 0:00:04]} 3. e5 {[%emt 0:00:10]} c5 {[%emt 0:00:04]} 4. c3 {[%emt 0:00:03]} Nc6 {[%emt 0:00:05]} 5. Nf3 {[%emt 0:00:07]} Bd7 {[%emt 1:32:40]} 6. Be2 {[%emt 1:31:54]} cxd4 {[%emt 0:00:00]} 7. cxd4 {[%emt 0:00:00]} Nh6 {[%emt 0:00:00]} 8. Bxh6 {[%emt 0:00:00]} gxh6 {[%emt 0:00:00]} 9. O-O {[%emt 0:00:00]} f6 {[%emt 0:02:00]} 10. Bb5 {[%emt 0:00:00]} Bg7 {[%emt 0:00:00]} 11. exf6 {[%emt 0:00:00]} Qxf6 {[%emt 0:00:00]} 12. Bxc6 {[%emt 0:00:00]} bxc6 {[%emt 0:00:00]} 13. Ne5 {[%emt 0:00:00]} c5 {[%emt 0:00:00]} 14. Qh5+ {[%emt 0:00:00]} Ke7 {[%emt 0:00:00]} 15. Nxd7 {[%emt 0:00:00]} Kxd7 {[%emt 0:00:00]} 16. Nc3 {[%emt 0:05:00]} cxd4 {[%emt 0:00:00]} 17. Nxd5 {[%emt 0:00:00]} exd5 {[%emt 0:00:00]} 18. Qxd5+ {[%emt 0:00:00]} Qd6 {[%emt 0:00:00]} 1/2-1/2

[Event "2nd Serbian League-Vojvodina 2023"]
[Site "Novi Sad"]
[Date "2023.11.05"]
[Round "5.7"]
[White "Mezentsev, Ivan"]
[Black "Horvath, Zsolt"]
[Result "0-1"]
[ECO "E14"]
[WhiteElo "2360"]
[BlackElo "2377"]
[Annotator "RC"]
[PlyCount "98"]
[EventDate "2023.10.22"]
[EventType "team-tourn"]
[EventCountry "SRB"]
[SourceTitle "playchess.com"]
[Source "ChessBase"]
[SourceQuality "1"]
[TimeControl "40/5400+30:1800+30"]

1. Nf3 {[%emt 0:00:13]} Nf6 {[%emt 0:01:10]} 2. c4 {[%emt 0:01:15]} e6 {[%emt 0:00:21]} 3. Nc3 {[%emt 0:01:19]} d5 {[%emt 0:00:33]} 4. e3 {[%emt 0:01:55]} Be7 {[%emt 0:00:49]} 5. b3 {[%emt 0:01:46]} O-O {[%emt 0:00:50]} 6. Bb2 {[%emt 0:00:58]} c5 {[%emt 0:03:25]} 7. cxd5 {[%emt 0:01:19]} exd5 {[%emt 0:00:49]} 8. Rc1 {[%emt 0:02:28]} b6 {[%emt 0:08:02]} 9. d4 {[%emt 0:00:28]} Bb7 {[%emt 0:02:29]} 10. Be2 {[%emt 0:02:40]} Nbd7 {[%emt 0:00:58]} 11. O-O {[%emt 0:00:05]} Rc8 {[%emt 0:08:30]} 12. Ne5 {[%emt 0:17:27]} Nxe5 {[%emt 0:09:55]} 13. dxe5 {[%emt 0:00:09]} Ne4 {[%emt 0:00:07]} 14. Nxe4 {[%emt 0:11:46]} dxe4 {[%emt 0:00:06]} 15. Qc2 {[%emt 0:03:04]} Qd7 {[%emt 0:06:21]} 16. Rfd1 {[%emt 0:05:04]} Qc6 {[%emt 0:01:16]} 17. Bc4 {[%emt 0:01:59]} Rcd8 {[%emt 0:02:21]} 18. Qe2 {[%emt 0:17:02]} Bc8 {[%emt 0:03:02]} 19. Rxd8 {[%emt 0:00:56]} Rxd8 {[%emt 0:00:28]} 20. Rd1 {[%emt 0:04:22]} Rxd1+ {[%emt 0:01:14]} 21. Qxd1 {[%emt 0:00:04]} Be6 {[%emt 0:00:18]} 22. Qe2 {[%emt 0:06:02]} g6 {[%emt 0:05:14]} 23. h3 {[%emt 0:01:05]} Qd7 {[%emt 0:04:35]} 24. Bxe6 {[%emt 0:00:34]} fxe6 {[%emt 0:01:12]} 25. Qg4 {[%emt 0:05:10]} Qd5 {[%emt 0:01:04]} 26. h4 {[%emt 0:01:09]} Kg7 {[%emt 0:01:28]} 27. h5 {[%emt 0:05:02]} g5 {[%emt 0:05:34]} 28. Qe2 {[%emt 0:02:57]} Qd3 {[%emt 0:04:18]} 29. Qxd3 {[%emt 0:00:48]} exd3 {[%emt 0:00:05]} 30. Kf1 {[%emt 0:00:22]} g4 {[%emt 0:01:36]} 31. Ke1 {[%emt 0:01:24]} b5 {[%emt 0:00:18]} 32. Kd2 {[%emt 0:00:32]} c4 {[%emt 0:00:10]} 33. bxc4 {[%emt 0:01:52]} bxc4 {[%emt 0:00:05]} 34. a3 {[%emt 0:00:36]} Bd8 {[%emt 0:01:17]} 35. Bc3 {[%emt 0:00:06]} Kh6 {[%emt 0:00:32]} 36. Bb4 {[%emt 0:01:01]} Bb6 {[%emt 0:09:30]} 37. g3 {[%emt 0:01:17]} Kxh5 {[%emt 0:01:41]} 38. a4 {[%emt 0:00:02]} a5 {[%emt 0:01:46]} 39. Ba3 {[%emt 0:03:07]} Kg6 {[%emt 0:00:16]} 40. Kc3 {[%emt 0:00:21]} Kf5 {[%emt 0:03:21]} 41. Bc1 {[%emt 0:30:13]} Ke4 {[%emt 0:31:23]} 42. Kxc4 {[%emt 0:00:26]} Kf3 {[%emt 0:00:43]} 43. Kxd3 {[%emt 0:00:10]} Kxf2 {[%emt 0:00:07]} 44. Bb2 {[%emt 0:01:23]} Kxg3 {[%emt 0:01:30]} 45. Ke2 {[%emt 0:00:04]} Kg2 {[%emt 0:00:22]} 46. Bd4 {[%emt 0:00:04]} Bd8 {[%emt 0:00:13]} 47. e4 {[%emt 0:00:12]} h5 {[%emt 0:00:14]} 48. Bf2 {[%emt 0:01:39]} h4 {[%emt 0:00:07]} 49. Bxh4 {[%emt 0:00:14]} Bxh4 {[%emt 0:00:04]} 0-1

[Event "2nd Serbian League-Vojvodina 2023"]
[Site "Novi Sad"]
[Date "2023.11.05"]
[Round "5.8"]
[White "Farkas, Sandor I"]
[Black "Mushini Ajay"]
[Result "1/2-1/2"]
[ECO "B94"]
[WhiteElo "2112"]
[BlackElo "2301"]
[Annotator "RC"]
[PlyCount "31"]
[EventDate "2023.10.22"]
[EventType "team-tourn"]
[EventCountry "SRB"]
[SourceTitle "playchess.com"]
[Source "ChessBase"]
[SourceQuality "1"]
[TimeControl "40/5400+30:1800+30"]

1. e4 {[%emt 1:31:00]} c5 {[%emt 1:31:00]} 2. Nf3 {[%emt 0:00:30]} d6 {[%emt 0:00:30]} 3. d4 {[%emt 0:00:30]} cxd4 {[%emt 0:00:30]} 4. Nxd4 {[%emt 0:00:30]} Nf6 {[%emt 0:00:30]} 5. Nc3 {[%emt 0:00:30]} a6 {[%emt 0:00:30]} 6. Bg5 {[%emt 0:00:30]} Nbd7 {[%emt 0:00:30]} 7. f4 {[%emt 0:00:30]} Qc7 {[%emt 0:00:30]} 8. Qf3 {[%emt 0:00:30]} h6 {[%emt 0:00:30]} 9. Bxf6 {[%emt 0:00:30]} Nxf6 {[%emt 0:00:30]} 10. f5 {[%emt 0:00:30]} e6 {[%emt 0:00:30]} 11. fxe6 {[%emt 0:00:30]} fxe6 {[%emt 0:00:30]} 12. Qg3 {[%emt 0:00:30]} e5 {[%emt 0:00:30]} 13. Qg6+ {[%emt 0:00:30]} Qf7 {[%emt 0:00:30]} 14. Qxf7+ {[%emt 0:00:30]} Kxf7 {[%emt 0:00:30]} 15. Bc4+ {[%emt 0:00:30]} Ke7 {[%emt 0:00:30]} 16. Nf5+ {[%emt 0:00:30]} 1/2-1/2

[Event "2nd Serbian League-Vojvodina 2023"]
[Site "Novi Sad"]
[Date "2023.11.05"]
[Round "5.9"]
[White "Jotic, Vladimir"]
[Black "Szalai, Kornel"]
[Result "0-1"]
[ECO "B23"]
[WhiteElo "2280"]
[BlackElo "2383"]
[Annotator "RC"]
[PlyCount "106"]
[EventDate "2023.10.22"]
[EventType "team-tourn"]
[EventCountry "SRB"]
[SourceTitle "playchess.com"]
[Source "ChessBase"]
[SourceQuality "1"]
[TimeControl "40/5400+30:1800+30"]

1. e4 {[%emt 0:00:02]} c5 {[%emt 0:02:49]} 2. Nc3 {[%emt 0:00:27]} g6 {[%emt 0:01:51]} 3. f4 {[%emt 0:00:57]} Bg7 {[%emt 0:00:29]} 4. Nf3 {[%emt 0:00:08]} Nc6 {[%emt 0:01:28]} 5. a3 {[%emt 0:00:58]} d6 {[%emt 0:05:46]} 6. Bc4 {[%emt 0:00:56]} e6 {[%emt 0:00:16]} 7. O-O {[%emt 0:00:17]} Nge7 {[%emt 0:00:07]} 8. d3 {[%emt 0:00:28]} b6 {[%emt 0:07:41]} 9. Qe1 {[%emt 0:02:19]} Bb7 {[%emt 0:00:55]} 10. f5 {[%emt 0:09:54]} gxf5 {[%emt 0:22:03]} 11. exf5 {[%emt 0:04:11]} d5 {[%emt 0:11:46]} 12. fxe6 {[%emt 0:01:57]} dxc4 {[%emt 0:01:41]} 13. exf7+ {[%emt 0:00:31]} Kf8 {[%emt 0:00:45]} 14. Qe4 {[%emt 0:07:27]} Na5 {[%emt 0:07:41]} 15. Ng5 {[%emt 0:04:37]} Qd4+ {[%emt 0:01:22]} 16. Be3 {[%emt 0:02:16]} Qxe4 {[%emt 0:00:21]} 17. dxe4 {[%emt 0:03:53]} Bc8 {[%emt 0:03:46]} 18. Rad1 {[%emt 0:08:47]} Nac6 {[%emt 0:01:16]} 19. Rd6 {[%emt 0:08:50]} h6 {[%emt 0:27:57]} 20. Nf3 {[%emt 0:41:35]} Bg4 {[%emt 0:00:30]} 21. Nh4 {[%emt 0:00:00]} Ne5 {[%emt 0:00:00]} 22. Nb5 {[%emt 0:01:00]} c3 {[%emt 0:00:00]} 23. b3 {[%emt 0:00:30]} Be2 {[%emt 0:00:00]} 24. Nc7 {[%emt 0:00:00]} Bxf1 {[%emt 0:02:00]} 25. Nxa8 {[%emt 0:00:00]} Kxf7 {[%emt 0:00:30]} 26. Nc7 {[%emt 0:01:30]} Ng4 {[%emt 0:00:00]} 27. Bf4 {[%emt 0:00:30]} Be2 {[%emt 0:00:00]} 28. Ne6 {[%emt 0:00:00]} Be5 {[%emt 0:00:00]} 29. Bxe5 {[%emt 0:00:00]} Nxe5 {[%emt 0:02:00]} 30. Nf4 {[%emt 0:01:30]} Ba6 {[%emt 0:00:30]} 31. Nf3 {[%emt 0:00:00]} N7c6 {[%emt 0:00:30]} 32. Nxe5+ {[%emt 0:00:00]} Nxe5 {[%emt 0:00:00]} 33. Nd5 {[%emt 0:01:30]} Bd3 {[%emt 0:00:00]} 34. Rf6+ {[%emt 0:00:00]} Kg7 {[%emt 0:00:00]} 35. Re6 {[%emt 0:00:00]} Ng6 {[%emt 0:00:00]} 36. Ne3 {[%emt 0:01:30]} Bxc2 {[%emt 0:00:00]} 37. Nxc2 {[%emt 0:00:00]} Rd8 {[%emt 0:03:00]} 38. Ne3 {[%emt 0:00:00]} Rd1+ {[%emt 0:00:30]} 39. Kf2 {[%emt 0:00:00]} c2 {[%emt 0:00:30]} 40. Nxc2 {[%emt 0:00:00]} Rd2+ {[%emt 0:00:30]} 41. Kf1 {[%emt 0:20:39]} Rxc2 {[%emt 0:23:40]} 42. Rc6 {[%emt 0:12:21]} Rb2 {[%emt 0:07:20]} 43. Rc7+ {[%emt 0:00:00]} Kf6 {[%emt 0:00:00]} 44. Rxa7 Rxb3 {[%emt 0:01:00]} 45. a4 {[%emt 0:00:00]} Ne5 {[%emt 0:00:30]} 46. Ra8 {[%emt 0:02:00]} Rb2 {[%emt 0:00:00]} 47. a5 {[%emt 0:00:00]} bxa5 {[%emt 0:00:00]} 48. Rxa5 {[%emt 0:01:00]} c4 {[%emt 0:01:30]} 49. Rc5 {[%emt 0:00:00]} Ke6 {[%emt 0:00:30]} 50. h3 {[%emt 0:01:00]} Kd6 {[%emt 0:00:30]} 51. Rd5+ {[%emt 0:00:00]} Kc6 {[%emt 0:00:30]} 52. Rxe5 {[%emt 0:00:00]} c3 {[%emt 0:00:30]} 53. Ke1 {[%emt 0:00:00]} Rb1+ {[%emt 0:00:30]} 0-1

[Event "2nd Serbian League-Vojvodina 2023"]
[Site "Novi Sad"]
[Date "2023.11.05"]
[Round "5.10"]
[White "Farkas, Tibor"]
[Black "Mikheev, Stanislav"]
[Result "1/2-1/2"]
[ECO "C01"]
[WhiteElo "2210"]
[BlackElo "2288"]
[Annotator "RC"]
[PlyCount "20"]
[EventDate "2023.10.22"]
[EventType "team-tourn"]
[EventCountry "SRB"]
[SourceTitle "playchess.com"]
[Source "ChessBase"]
[SourceQuality "1"]
[TimeControl "40/5400+30:1800+30"]

1. e4 {[%emt 1:31:00]} e5 {[%emt 1:31:00]} 2. Nf3 {[%emt 0:00:30]} Nf6 {[%emt 0:00:30]} 3. Nxe5 {[%emt 0:00:30]} d6 {[%emt 0:00:30]} 4. Nf3 {[%emt 0:00:30]} Nxe4 {[%emt 0:00:30]} 5. d3 {[%emt 0:00:30]} Nf6 {[%emt 0:00:30]} 6. d4 {[%emt 0:00:30]} d5 {[%emt 0:00:30]} 7. Bd3 {[%emt 0:00:30]} Bd6 {[%emt 0:00:30]} 8. O-O {[%emt 0:00:30]} O-O {[%emt 0:00:30]} 9. Bg5 {[%emt 0:00:30]} Bg4 {[%emt 0:00:30]} 10. Nbd2 {[%emt 0:00:30]} Re8 {[%emt 0:00:30]} 1/2-1/2

[Event "2nd Serbian League-Vojvodina 2023"]
[Site "Novi Sad"]
[Date "2023.11.05"]
[Round "5.11"]
[White "Bulajic, Ratko"]
[Black "Juhasz, Bence R"]
[Result "0-1"]
[ECO "E62"]
[WhiteElo "2075"]
[BlackElo "2210"]
[Annotator "ChessBase"]
[PlyCount "76"]
[EventDate "2023.10.22"]
[EventType "team-tourn"]
[EventCountry "SRB"]
[SourceTitle "playchess.com"]
[Source "ChessBase"]
[SourceQuality "1"]
[TimeControl "40/5400+30:1800+30"]

1. d4 {[%emt 1:31:00]} Nf6 {[%emt 1:31:00]} 2. Nf3 {[%emt 0:00:30]} g6 {[%emt 0:00:30]} 3. c4 {[%emt 0:00:30]} Bg7 {[%emt 0:00:30]} 4. Nc3 {[%emt 0:00:30]} O-O {[%emt 0:00:30]} 5. g3 {[%emt 0:00:30]} d6 {[%emt 0:00:30]} 6. Bg2 {[%emt 0:00:30]} Nc6 {[%emt 0:00:30]} 7. d5 {[%emt 0:00:30]} Na5 {[%emt 0:00:30]} 8. Nd2 {[%emt 0:00:30]} c6 {[%emt 0:00:30]} 9. Rb1 {[%emt 0:00:30]} cxd5 {[%emt 0:00:30]} 10. Nxd5 {[%emt 0:00:30]} Nxd5 {[%emt 0:00:30]} 11. cxd5 {[%emt 0:00:30]} Qc7 {[%emt 0:00:30]} 12. b4 {[%emt 0:00:30]} Nc4 {[%emt 0:00:30]} 13. Qc2 {[%emt 0:00:30]} b5 {[%emt 0:00:30]} 14. Bb2 {[%emt 0:00:30]} Bxb2 {[%emt 0:00:30]} 15. Rxb2 {[%emt 0:00:30]} Bg4 {[%emt 0:00:30]} 16. Nxc4 {[%emt 0:00:30]} bxc4 {[%emt 0:00:30]} 17. O-O {[%emt 0:00:30]} Rfc8 {[%emt 0:00:30]} 18. Rc1 {[%emt 0:00:30]} Qb6 {[%emt 0:00:30]} 19. Qe4 {[%emt 0:00:30]} Bf5 {[%emt 0:00:30]} 20. Qf4 {[%emt 0:00:30]} Rc7 {[%emt 0:00:30]} 21. g4 {[%emt 0:00:30]} Bd7 {[%emt 0:00:30]} 22. Rxc4 {[%emt 0:00:30]} Rxc4 {[%emt 0:00:30]} 23. Qxc4 {[%emt 0:00:30]} Rc8 {[%emt 0:00:30]} 24. Qf4 {[%emt 0:00:30]} h5 {[%emt 0:00:30]} 25. h3 {[%emt 0:00:30]} hxg4 {[%emt 0:00:30]} 26. hxg4 {[%emt 0:00:30]} Qa6 {[%emt 0:00:30]} 27. Bf3 {[%emt 0:00:30]} Rc4 {[%emt 0:00:30]} 28. Qg5 {[%emt 0:00:30]} Qb6 {[%emt 0:00:30]} 29. Rb3 {[%emt 0:00:30]} e5 {[%emt 0:00:30]} 30. dxe6 {[%emt 0:00:30]} Bxe6 {[%emt 0:00:30]} 31. Re3 {[%emt 0:00:30]} d5 {[%emt 0:00:30]} 32. Qf6 {[%emt 0:00:30]} Rxb4 {[%emt 0:00:30]} 33. Re5 {[%emt 0:00:30]} Qc6 {[%emt 0:00:30]} 34. Qd8+ {[%emt 0:00:30]} Kg7 {[%emt 0:00:30]} 35. g5 {[%emt 0:00:30]} Rh4 {[%emt 0:00:30]} 36. Kg2 {[%emt 0:00:30]} Qc1 {[%emt 0:00:30]} 37. Qf6+ {[%emt 0:00:30]} Kg8 {[%emt 0:00:30]} 38. Kg3 {[%emt 0:00:30]} Rh3+ {[%emt 0:00:30]} 0-1

[Event "2nd Serbian League-Vojvodina 2023"]
[Site "Novi Sad"]
[Date "2023.11.05"]
[Round "5.12"]
[White "Kecskemeti, Arpad"]
[Black "Strangar, Zlatko"]
[Result "1-0"]
[ECO "C13"]
[WhiteElo "2185"]
[BlackElo "2213"]
[Annotator "ChessBase"]
[PlyCount "44"]
[EventDate "2023.10.22"]
[EventType "team-tourn"]
[EventCountry "SRB"]
[SourceTitle "playchess.com"]
[Source "ChessBase"]
[SourceQuality "1"]
[TimeControl "40/5400+30:1800+30"]

1. e4 {[%emt 0:00:03]} e6 {[%emt 1:31:00]} 2. d4 {[%emt 1:31:27]} d5 {[%emt 0:00:30]} 3. Nc3 {[%emt 0:00:00]} Nf6 4. Bg5 {[%emt 0:00:00]} dxe4 5. Nxe4 {[%emt 0:01:30]} Nbd7 {[%emt 0:01:30]} 6. Nf3 {[%emt 0:00:00]} Be7 7. Bxf6 {[%emt 0:01:00]} Nxf6 {[%emt 0:01:00]} 8. Bd3 {[%emt 0:00:30]} O-O {[%emt 0:00:00]} 9. Qe2 {[%emt 0:00:30]} Nxe4 {[%emt 0:01:00]} 10. Qxe4 {[%emt 0:00:00]} g6 {[%emt 0:00:00]} 11. h4 {[%emt 0:00:00]} c5 {[%emt 0:01:00]} 12. h5 {[%emt 0:01:30]} Qd5 {[%emt 0:00:30]} 13. Qe3 {[%emt 0:00:00]} g5 {[%emt 0:00:00]} 14. dxc5 h6 {[%emt 0:01:00]} 15. b4 {[%emt 0:00:00]} a5 {[%emt 0:00:00]} 16. c3 {[%emt 0:00:00]} Bf6 {[%emt 0:00:00]} 17. c4 {[%emt 0:00:00]} Qc6 18. b5 {[%emt 0:03:00]} Qc7 {[%emt 0:02:00]} 19. Rc1 {[%emt 0:00:00]} Be7 {[%emt 0:00:30]} 20. c6 {[%emt 0:00:00]} a4 {[%emt 0:00:00]} 21. O-O Kg7 {[%emt 0:00:00]} 22. c5 {[%emt 0:00:00]} g4 {[%emt 0:00:00]} 1-0

[Event "2nd Serbian League-Vojvodina 2023"]
[Site "Novi Sad"]
[Date "2023.11.05"]
[Round "5.13"]
[White "Nevednichy, Vladislav"]
[Black "Agdelen, Huseyin Can"]
[Result "1/2-1/2"]
[ECO "B40"]
[WhiteElo "2447"]
[BlackElo "2401"]
[Annotator "RC"]
[PlyCount "20"]
[EventDate "2023.10.22"]
[EventType "team-tourn"]
[EventCountry "SRB"]
[SourceTitle "playchess.com"]
[Source "ChessBase"]
[SourceQuality "1"]
[TimeControl "40/5400+30:1800+30"]

1. e4 {[%emt 1:31:00]} c5 {[%emt 1:31:00]} 2. Nf3 {[%emt 0:00:30]} e6 {[%emt 0:00:30]} 3. g3 {[%emt 0:00:30]} Nc6 {[%emt 0:00:30]} 4. Bg2 {[%emt 0:00:30]} Nf6 {[%emt 0:00:30]} 5. Qe2 {[%emt 0:00:30]} e5 {[%emt 0:00:30]} 6. c3 {[%emt 0:00:30]} d5 {[%emt 0:00:30]} 7. d3 {[%emt 0:00:30]} Be7 {[%emt 0:00:30]} 8. exd5 {[%emt 0:00:30]} Qxd5 {[%emt 0:00:30]} 9. O-O {[%emt 0:00:30]} O-O {[%emt 0:00:30]} 10. Re1 {[%emt 0:00:30]} Bg4 {[%emt 0:00:30]} 1/2-1/2

[Event "2nd Serbian League-Vojvodina 2023"]
[Site "Novi Sad"]
[Date "2023.11.05"]
[Round "5.14"]
[White "Lalic, Bogdan"]
[Black "Stoleriu, George"]
[Result "1/2-1/2"]
[ECO "E11"]
[WhiteElo "2345"]
[BlackElo "2400"]
[Annotator "RC"]
[PlyCount "31"]
[EventDate "2023.10.22"]
[EventType "team-tourn"]
[EventCountry "SRB"]
[SourceTitle "playchess.com"]
[Source "ChessBase"]
[SourceQuality "1"]
[TimeControl "40/5400+30:1800+30"]

1. d4 {[%emt 1:31:00]} Nf6 {[%emt 1:31:00]} 2. c4 {[%emt 0:00:00]} e6 {[%emt 0:00:30]} 3. Nf3 {[%emt 0:01:00]} Bb4+ {[%emt 0:00:30]} 4. Bd2 {[%emt 0:00:30]} Qe7 {[%emt 0:00:30]} 5. g3 {[%emt 0:00:30]} Bxd2+ {[%emt 0:00:30]} 6. Qxd2 {[%emt 0:00:30]} d6 {[%emt 0:00:30]} 7. Nc3 {[%emt 0:00:30]} O-O {[%emt 0:00:30]} 8. Bg2 {[%emt 0:00:30]} e5 {[%emt 0:00:30]} 9. O-O {[%emt 0:00:00]} Re8 {[%emt 0:00:30]} 10. e4 {[%emt 0:01:00]} Bg4 {[%emt 0:00:30]} 11. Nh4 {[%emt 0:00:30]} Nc6 {[%emt 0:00:30]} 12. h3 {[%emt 0:00:30]} Bd7 {[%emt 0:00:30]} 13. Nb5 {[%emt 0:00:30]} Qd8 {[%emt 0:00:30]} 14. d5 {[%emt 0:00:30]} Ne7 {[%emt 0:00:30]} 15. Nc3 {[%emt 0:00:30]} c6 {[%emt 0:00:00]} 16. dxc6 {[%emt 0:00:00]} 1/2-1/2